bitfinex/quotes_ETHUSD_20230113
["timestamp","ask_amount","ask_price","bid_price","bid_amount"]
[1673644445736,3.69794079,1426.1,1426.0,0.03072038]
[1673644446158,9.66394303,1426.1,1426.0,0.02270504]
[1673644446370,25.27820303,1426.1,1426.0,0.02270504]
[1673644446585,25.29855356,1426.1,1426.0,0.02270504]
[1673644447200,2.66781303,1426.1,1426.0,0.02270504]
[1673644447413,3.64850343,1426.1,1426.0,21.06056504]
[1673644447600,2.07931355,1426.1,1426.0,0.09672029]
[1673644447812,3.64850343,1426.1,1426.0,0.03072028]
[1673644448028,2.60181303,1426.1,1426.0,0.03072028]
[1673644448237,11.68893211,1426.1,1426.0,0.03072028]
[1673644448537,25.77919211,1426.1,1426.0,0.03072028]
[1673644448754,40.46306029,1426.1,1426.0,0.03072028]
[1673644449020,40.80160834,1426.1,1426.0,0.03072028]
[1673644449191,1.5,1426.0,1425.5,0.066]
[1673644449373,7.0137,1425.8,1425.5,0.03072028]
[1673644449585,7.0797,1425.8,1425.4,14.09647]
[1673644449916,10.39884587,1425.8,1425.4,17.70280272]
[1673644450146,10.39884587,1425.8,1425.4,7.08111]
[1673644450147,17.4328964,1425.8,1425.4,7.08111]
[1673644450333,10.4191964,1425.8,1425.4,7.08128]
[1673644450548,1.04695642,1425.7,1425.4,0.066]
[1673644450793,8.06106642,1425.7,1425.3,7.01594]
[1673644451007,10.90562005,1425.7,1425.3,0.066]
[1673644451322,3.89151005,1425.7,1425.3,13.12228272]
[1673644451487,0.02035053,1425.7,1425.3,27.22040272]
[1673644451701,0.02035053,1425.7,1425.3,28.79340272]
[1673644452360,0.02035053,1425.7,1425.5,14.03016]
[1673644452580,1.91136364,1425.9,1425.6,17.63487272]
[1673644452581,1.04695642,1425.9,1425.6,17.63487272]
[1673644452743,1.63643464,1426.0,1425.6,17.70087272]
[1673644452744,1.04695642,1426.0,1425.6,17.70087272]
[1673644453105,1.04695642,1426.0,1425.8,7.0136]
[1673644453261,2.61739106,1426.0,1425.8,0.066]
[1673644453471,1.04695642,1425.9,1425.7,0.066]
[1673644453721,15.33531553,1425.9,1425.6,3.60633272]
[1673644454048,1.37469553,1425.9,1425.5,14.09548]
[1673644454327,1.04695642,1425.9,1425.5,14.09548]
[1673644454524,1.04695642,1425.9,1425.5,21.11029]
[1673644454972,1.04695642,1425.9,1425.7,7.01409]
[1673644455185,1.04695642,1425.9,1425.7,14.09418]
[1673644455489,2.63774159,1426.0,1425.7,23.57974727]
[1673644455706,15.97190707,1426.1,1425.7,27.18607999]
[1673644455707,14.58069106,1426.1,1425.7,27.18607999]
[1673644455918,13.01025642,1426.1,1425.7,27.18607999]
[1673644456157,13.01025642,1426.1,1425.9,21.03933]
[1673644456158,0.066,1426.1,1425.9,21.03933]
[1673644456366,1.45365064,1426.2,1426.0,12.72288572]
[1673644456573,1.04695642,1426.2,1426.0,19.80150572]
[1673644458135,1.04695642,1426.2,1426.0,26.81412572]
[1673644458346,1.04695642,1426.2,1426.1,2.68141257]
[1673644458550,0.83602943,1426.3,1426.2,21.03489]
[1673644458763,0.77002943,1426.3,1426.2,24.70722272]
[1673644459096,0.77002943,1426.3,1426.2,14.08926]
[1673644459318,0.77002943,1426.3,1426.2,0.066]
[1673644459319,1.81698585,1426.3,1426.2,0.066]
[1673644459481,1.81698585,1426.3,1426.1,16.77129257]
[1673644459697,1.81698585,1426.3,1426.1,20.37762529]
[1673644462210,1.81698585,1426.3,1426.1,27.38975529]
[1673644462454,3.38742049,1426.3,1426.1,27.38975529]
[1673644462664,1.04695642,1426.2,1426.1,20.37762529]
[1673644462895,3.38742049,1426.3,1426.1,17.69621272]
[1673644463108,1.81698585,1426.3,1426.1,17.69621272]
[1673644463268,3.38742049,1426.3,1426.1,17.69621272]
[1673644463476,1.81698585,1426.3,1426.1,17.69621272]
[1673644463725,3.38742049,1426.3,1426.1,17.69621272]
[1673644463938,0.77002943,1426.3,1426.1,28.09078929]
[1673644464113,0.77002943,1426.3,1426.2,6.10633272]
[1673644464316,0.77002943,1426.3,1426.2,27.20722272]
[1673644466070,0.77002943,1426.3,1426.2,24.70722272]
[1673644466228,0.77002943,1426.3,1426.2,26.24821735]
[1673644467045,0.77002943,1426.3,1426.2,19.23658735]
[1673644468045,0.77002943,1426.3,1426.2,26.24821735]
[1673644468982,0.77002943,1426.3,1426.2,12.22495735]
[1673644469158,0.77002943,1426.3,1426.2,3.67233272]
[1673644469525,0.77002943,1426.3,1426.2,3.60633272]
[1673644471059,1.81698585,1426.3,1426.1,0.066]
[1673644471271,1.81698585,1426.3,1426.0,14.09073]
[1673644471272,8.82812585,1426.3,1426.0,14.09073]
[1673644471480,15.90526585,1426.3,1426.0,10.68463272]
[1673644471929,18.56329518,1426.3,1426.0,3.67233272]
[1673644472249,18.56329518,1426.3,1425.9,22.19578]
[1673644472250,15.07078642,1426.2,1425.9,0.066]
[1673644472461,15.07078642,1426.2,1425.8,0.066]
[1673644472462,15.13678642,1426.2,1425.8,0.066]
[1673644472673,15.13678642,1426.2,1425.8,3.60633272]
[1673644473524,22.14876642,1426.2,1425.8,3.60633272]
[1673644473831,7.07785,1426.2,1425.8,17.63341272]
[1673644473994,7.07785,1426.2,1425.8,17.69941272]
[1673644474328,8.12480642,1426.2,1425.8,24.71301272]
[1673644474676,0.066,1426.2,1425.9,3.60633272]
[1673644474882,1.81698585,1426.3,1426.0,17.99220599]
[1673644475043,1.81698585,1426.3,1426.0,18.05820599]
[1673644475618,1.81698585,1426.3,1426.0,25.07082599]
[1673644475842,3.38742049,1426.3,1426.0,25.07082599]
[1673644476158,1.04695642,1426.2,1426.0,4.03296599]
[1673644476320,8.05860642,1426.2,1426.0,3.60633272]
[1673644476519,15.13625642,1426.2,1426.0,3.60633272]
[1673644477140,22.14790642,1426.2,1425.9,0.066]
[1673644477356,22.14790642,1426.2,1425.9,3.60633272]
[1673644477682,22.14790642,1426.2,1425.8,0.066]
[1673644477683,0.00356098,1425.9,1425.8,0.066]
[1673644477896,0.00356098,1425.9,1425.8,3.60633272]
[1673644480212,0.00356098,1425.9,1425.8,17.63353272]
[1673644480555,0.00356098,1425.9,1425.8,24.71313272]
[1673644481453,0.00356098,1425.9,1425.8,27.05813272]
[1673644481666,0.00356098,1425.9,1425.8,35.45494054]
[1673644481901,0.00356098,1425.9,1425.8,33.71532599]
[1673644489860,0.00356098,1425.9,1425.8,15.51012599]
[1673644490650,0.00042024,1425.9,1425.8,14.34312599]
[1673644491395,0.00042024,1425.9,1425.8,21.35672599]
[1673644491757,0.00042024,1425.9,1425.8,28.37032599]
[1673644492125,0.00042024,1425.9,1425.8,21.35672599]
[1673644492645,0.00042024,1425.9,1425.8,28.37032599]
[1673644493240,0.00042024,1425.9,1425.8,21.35672599]
[1673644493588,2.61739106,1426.1,1425.8,14.34312599]
[1673644493589,9.5799713,1426.1,1425.8,14.34312599]
[1673644493812,8.07553666,1426.1,1425.9,3.60633272]
[1673644493970,1.06337666,1426.1,1425.9,3.60633272]
[1673644494172,0.99737666,1426.1,1425.9,10.61943272]
[1673644494436,2.5678113,1426.1,1426.0,3.60633272]
[1673644494657,0.066,1426.2,1426.1,14.02426]
[1673644494811,4.43437692,1426.3,1426.1,10.68446272]
[1673644495008,4.43437692,1426.3,1426.2,3.60633272]
[1673644495220,4.43437692,1426.3,1426.1,0.066]
[1673644495485,1.57043464,1426.2,1425.9,13.8009626]
[1673644495654,1.57043464,1426.2,1426.0,3.60633272]
[1673644496200,17.68760749,1426.2,1425.9,0.066]
[1673644496410,17.68760749,1426.2,1425.9,3.60633272]
[1673644496411,1.57043464,1426.1,1425.9,3.60633272]
[1673644497162,8.58257464,1426.1,1425.9,3.60633272]
[1673644497330,10.76283802,1426.1,1425.9,3.60633272]
[1673644498187,3.75069802,1426.1,1425.9,3.60633272]
[1673644498394,3.68469802,1426.1,1425.9,3.60633272]
[1673644498623,10.69684802,1426.1,1425.9,3.60633272]
[1673644498836,10.76284802,1426.1,1425.9,3.62414709]
[1673644499472,10.76284802,1426.1,1425.9,0.01781437]
[1673644499473,1.57043464,1426.0,1425.9,0.01781437]
[1673644499687,23.13177285,1426.0,1425.9,0.01781437]
[1673644499859,24.77303184,1426.0,1425.9,0.01781437]
[1673644500302,14.09124,1426.0,1425.9,0.01781437]
[1673644500495,15.66649899,1426.0,1425.9,0.01781437]
[1673644500706,14.09124,1426.0,1425.9,0.01781437]
[1673644500932,15.66649899,1426.0,1425.9,0.01781437]
[1673644502575,8.65387899,1426.0,1425.9,0.01781437]
[1673644503464,9.70375489,1426.0,1425.9,0.01781437]
[1673644503679,8.65387899,1426.0,1425.9,0.01781437]
[1673644504063,9.70362662,1426.0,1425.9,0.01781437]
[1673644504311,8.65387899,1426.0,1425.9,0.01781437]
[1673644506011,9.70376798,1426.0,1425.9,0.01781437]
[1673644506187,27.69341423,1426.0,1425.9,0.01781437]
[1673644506396,29.32505349,1426.0,1425.9,0.01781437]
[1673644506614,29.32505349,1426.0,1425.9,0.01332292]
[1673644506615,26.95089543,1426.0,1425.9,0.01332292]
[1673644506939,33.0813124,1426.0,1425.9,0.01332292]
[1673644507895,29.95089543,1426.0,1425.9,0.01332292]
[1673644508113,32.57439358,1426.0,1425.9,0.01332292]
[1673644510953,29.95089543,1426.0,1425.9,0.01332292]
[1673644511114,32.57370636,1426.0,1425.9,0.01332292]
[1673644511322,29.95089543,1426.0,1425.9,0.01332292]
[1673644511945,32.57369083,1426.0,1425.9,0.01332292]
[1673644512216,31.39569083,1426.0,1425.9,0.01332292]
[1673644513044,33.49298124,1426.0,1425.9,0.01332292]
[1673644513362,11.08937952,1426.0,1425.9,0.01332292]
[1673644513678,22.67671296,1426.0,1425.9,0.01332292]
[1673644513835,24.77396648,1426.0,1425.9,0.01332292]
[1673644515224,23.20111352,1426.0,1425.9,0.01332292]
[1673644515433,26.51879672,1426.0,1425.9,0.01332292]
[1673644516208,25.99429226,1426.0,1425.9,0.01332292]
[1673644516511,22.67660906,1426.0,1425.9,0.01332292]
[1673644517555,23.72499093,1426.0,1425.9,0.01332292]
[1673644517938,15.66398906,1426.0,1425.9,0.01332292]
[1673644518148,22.67660906,1426.0,1425.9,0.01332292]
[1673644519011,23.72503287,1426.0,1425.9,0.01332292]
[1673644519621,0.066,1426.0,1425.9,15.01854292]
[1673644519865,1.04842381,1426.1,1425.9,25.25664362]
[1673644520056,14.76532381,1426.2,1426.0,3.60633272]
[1673644520412,2.68717287,1426.2,1426.0,3.62414699]
[1673644520566,2.62117287,1426.2,1426.0,5.10782261]
[1673644520785,1.04842381,1426.2,1426.0,5.17382261]
[1673644521102,1.04842381,1426.2,1426.0,5.1738226]
[1673644521304,1.04842381,1426.2,1426.0,5.17382259]
[1673644521762,1.04842381,1426.2,1426.1,0.51738226]
[1673644521937,1.04842381,1426.2,1426.1,0.53519649]
[1673644523402,1.04842381,1426.2,1426.1,0.01781422]
[1673644523691,2.62117287,1426.2,1426.1,0.01781422]
[1673644524261,1.04842381,1426.2,1426.1,0.01781422]
[1673644524592,10.79611416,1426.3,1426.1,0.01781422]
[1673644524928,1.04842381,1426.2,1426.1,0.01781422]
[1673644529285,2.62117287,1426.2,1426.1,0.01781422]
[1673644529542,23.65606287,1426.2,1426.1,0.01781422]
[1673644529822,27.46259935,1426.2,1426.1,0.01781422]
[1673644530195,25.88985029,1426.2,1426.1,0.01781422]
[1673644530569,27.46274925,1426.2,1426.1,0.01781422]
[1673644530778,26.41403392,1426.2,1426.1,0.01781422]
[1673644531039,25.36549573,1426.2,1426.1,0.01781422]
[1673644531417,27.46274925,1426.2,1426.1,0.01781422]
[1673644531752,25.36549573,1426.2,1426.1,0.01781422]
[1673644532365,18.35386573,1426.2,1426.1,0.01781422]
[1673644532999,20.45111925,1426.2,1426.1,0.01781422]
[1673644533668,18.35386573,1426.2,1426.1,0.01781422]
[1673644533831,20.45111925,1426.2,1426.1,0.01781422]
[1673644534457,18.35386573,1426.2,1426.1,0.01781422]
[1673644534894,27.46274925,1426.2,1426.1,0.01781422]
[1673644535565,25.88985029,1426.2,1426.1,0.01781422]
[1673644535874,25.88985029,1426.2,1426.1,0.01332159]
[1673644535875,27.8437427,1426.2,1426.1,0.01332159]
[1673644536104,29.0217427,1426.2,1425.7,2.25713283]
[1673644536258,1.04900601,1425.9,1425.7,2.25713283]
[1673644536459,15.07586601,1425.9,1425.7,2.25713283]
[1673644536671,22.15543601,1425.9,1425.7,2.25713283]
[1673644537086,23.72894503,1425.9,1425.7,2.25713283]
[1673644541881,16.71537503,1425.9,1425.7,2.25713283]
[1673644542581,1.11500601,1425.9,1425.7,2.25713283]
[1673644542776,1.04900601,1425.9,1425.8,21.0408]
[1673644542991,1.04900601,1425.9,1425.8,21.1068]
[1673644543422,3.73752105,1426.0,1425.8,14.0932]
[1673644543423,1.11500601,1426.0,1425.8,14.0932]
[1673644543636,1.04900601,1426.0,1425.8,7.0796]
[1673644543919,1.04900601,1426.0,1425.8,7.07956]
[1673644544880,1.04900601,1426.0,1425.8,15.72821328]
[1673644545306,1.04900601,1426.0,1425.8,22.74181328]
[1673644545912,25.65615745,1426.1,1425.8,22.74181328]
[1673644546171,1.04900601,1426.0,1425.8,22.74181328]
[1673644547436,1.04900601,1426.0,1425.8,0.066]
[1673644547437,15.07426601,1426.0,1425.8,0.066]
[1673644547623,22.15290601,1426.0,1425.7,2.25713283]
[1673644547838,23.72641503,1426.0,1425.7,5.86346555]
[1673644548015,1.04900601,1425.9,1425.7,5.92946555]
[1673644548223,7.0136,1425.8,1425.7,5.92946555]
[1673644548470,7.0136,1425.8,1425.7,3.50113283]
[1673644548471,0.066,1425.8,1425.7,3.50113283]
[1673644548726,22.15502601,1425.9,1425.7,3.43513283]
[1673644549084,15.14159601,1425.9,1425.7,3.43513283]
[1673644549964,22.15509601,1425.9,1425.7,3.43513283]
[1673644550983,15.14159601,1425.9,1425.7,3.43513283]
[1673644552009,22.15509601,1425.9,1425.7,3.43513283]
[1673644552220,23.72860503,1425.9,1425.7,2.25713283]
[1673644552956,15.14159601,1425.9,1425.7,2.25713283]
[1673644554124,22.15509601,1425.9,1425.7,2.25713283]
[1673644554346,8.12818601,1425.9,1425.7,2.25713283]
[1673644554555,1.11500601,1425.9,1425.7,9.27120283]
[1673644554903,1.04900601,1425.9,1425.7,9.33720283]
[1673644555578,1.04900601,1425.9,1425.7,15.39754183]
[1673644555908,0.066,1426.0,1425.8,3.60633272]
[1673644556132,1.37644843,1426.1,1425.9,7.01311]
[1673644556340,1.37644843,1426.1,1425.9,0.066]
[1673644556341,2.62251503,1426.1,1425.9,0.066]
[1673644556535,16.97428745,1426.1,1425.8,3.67233272]
[1673644556742,17.04028745,1426.1,1425.8,4.05245176]
[1673644556954,1.04900601,1426.0,1425.7,20.63346911]
[1673644557308,8.06184601,1426.0,1425.7,16.57530183]
[1673644557468,8.06184601,1426.0,1425.7,9.55905824]
[1673644557469,22.15352601,1426.0,1425.7,9.55905824]
[1673644558257,23.72703503,1426.0,1425.7,3.49871924]
[1673644558413,23.72703503,1426.0,1425.7,3.43271924]
[1673644561004,1.04900601,1425.9,1425.7,3.43271924]
[1673644561350,8.06234601,1425.9,1425.7,3.43271924]
[1673644561565,8.06234601,1425.9,1425.7,10.44657924]
[1673644561566,0.066,1425.9,1425.7,10.44657924]
[1673644561723,1.11500601,1426.0,1425.7,27.33801219]
[1673644562086,1.04900601,1426.0,1425.8,3.60633272]
[1673644562300,1.04900601,1426.0,1425.8,17.63312272]
[1673644562617,1.04900601,1426.0,1425.8,3.67233272]
[1673644562771,8.06181601,1426.0,1425.8,3.60633272]
[1673644562987,8.12781601,1426.0,1425.8,3.60633272]
[1673644563514,1.11500601,1426.0,1425.8,6.70071821]
[1673644563741,1.11500601,1426.0,1425.8,13.78000821]
[1673644563742,1.04900601,1426.0,1425.8,13.78000821]
[1673644564259,1.04900601,1426.0,1425.8,20.79337821]
[1673644565047,8.97912144,1426.1,1425.9,7.27833272]
[1673644565048,1.11500601,1426.1,1425.9,7.27833272]
[1673644565220,1.11500601,1426.1,1426.0,7.01262]
[1673644565221,0.012,1426.1,1426.0,7.01262]
[1673644565398,0.002,1426.1,1426.0,7.07662]
[1673644565608,2.62251503,1426.2,1426.0,7.07862]
[1673644566031,1.04900601,1426.1,1426.0,7.07862]
[1673644566241,2.62251503,1426.2,1426.0,7.07862]
[1673644567220,1.04900601,1426.1,1426.0,7.07862]
[1673644567397,2.62251503,1426.2,1426.0,14.09124]
[1673644567611,1.04900601,1426.2,1426.1,1.178]
[1673644567824,2.73721192,1426.3,1426.1,18.80805272]
[1673644567825,3.72021793,1426.3,1426.1,18.80805272]
[1673644568029,1.81903544,1426.3,1426.1,25.88618272]
[1673644568370,1.81903544,1426.3,1426.1,29.55268602]
[1673644569151,1.81903544,1426.3,1426.1,22.54055602]
[1673644569538,1.81903544,1426.3,1426.1,29.55268602]
[1673644570249,0.77002943,1426.3,1426.1,29.55268602]
[1673644570485,1.81903544,1426.3,1426.1,29.55268602]
[1673644570820,1.81903544,1426.3,1426.2,6.56160132]
[1673644570989,0.77002943,1426.3,1426.2,30.01249132]
[1673644571216,0.77002943,1426.3,1426.2,32.51249132]
[1673644571415,0.77002943,1426.3,1426.2,30.01249132]
[1673644572138,0.77002943,1426.3,1426.2,30.01049132]
[1673644572459,0.77002943,1426.3,1426.2,30.01249132]
[1673644573035,0.77002943,1426.3,1426.2,8.97760132]
[1673644573175,0.77002943,1426.3,1426.2,20.04559272]
[1673644573391,0.77002943,1426.3,1426.2,27.05722272]
[1673644573597,0.77002943,1426.3,1426.2,20.04559272]
[1673644574264,0.77002943,1426.3,1426.2,27.05722272]
[1673644574497,0.77002943,1426.3,1426.2,20.04559272]
[1673644574806,0.77002943,1426.3,1426.2,29.76295099]
[1673644575184,0.77002943,1426.3,1426.2,29.76095099]
[1673644575392,0.77002943,1426.3,1426.2,29.76295099]
[1673644577182,0.77002943,1426.3,1426.2,27.41295099]
[1673644577911,0.77002943,1426.3,1426.2,20.40132099]
[1673644578439,0.77002943,1426.3,1426.2,27.41295099]
[1673644578857,0.77002943,1426.3,1426.2,20.40132099]
[1673644579274,0.77002943,1426.3,1426.2,27.41295099]
[1673644580029,0.77002943,1426.3,1426.2,27.40961918]
[1673644581495,0.77002943,1426.3,1426.2,24.70389091]
[1673644585733,0.77002943,1426.3,1426.2,24.71870613]
[1673644585895,0.77002943,1426.3,1426.2,24.71870612]
[1673644586107,0.77002943,1426.3,1426.2,24.71870611]
[1673644586570,0.77002943,1426.3,1426.2,24.7187061]
[1673644586992,0.77002943,1426.3,1426.2,24.71870609]
[1673644587157,0.77002943,1426.3,1426.2,28.0092427]
[1673644587362,0.77002943,1426.3,1426.2,30.3592427]
[1673644587583,0.77002943,1426.3,1426.2,30.35924266]
[1673644587791,0.77002943,1426.3,1426.2,30.35924262]
[1673644587988,0.77002943,1426.3,1426.2,30.3592426]
[1673644588243,0.77002943,1426.3,1426.2,30.35924259]
[1673644588427,0.77002943,1426.3,1426.2,28.00924257]
[1673644588657,0.77002943,1426.3,1426.2,28.00924255]
[1673644588898,0.77002943,1426.3,1426.2,28.00924253]
[1673644589052,0.77002943,1426.3,1426.2,28.00924252]
[1673644589473,0.77002943,1426.3,1426.2,3.68381587]
[1673644589723,0.77002943,1426.3,1426.2,0.01481495]
[1673644590151,0.79037996,1426.3,1426.2,0.01481495]
[1673644590310,16.09166597,1426.3,1426.2,0.01481495]
[1673644590519,16.15766597,1426.3,1426.2,0.01481495]
[1673644590764,18.95947467,1426.3,1426.2,0.01481495]
[1673644591394,20.53298369,1426.3,1426.2,0.01481495]
[1673644591732,7.01213,1426.1,1426.0,10.066]
[1673644591898,7.09848053,1426.1,1426.0,10.066]
[1673644592322,14.34061053,1426.1,1426.0,10.066]
[1673644592519,25.19651229,1426.1,1426.0,10.066]
[1673644592727,27.94802131,1426.1,1426.0,0.7882]
[1673644592957,27.94802131,1426.1,1425.5,0.066]
[1673644592958,0.17886464,1425.9,1425.5,0.066]
[1673644593302,0.17886464,1425.9,1425.4,0.17218974]
[1673644593303,7.01363,1425.8,1425.4,0.08218974]
[1673644593462,7.07963,1425.8,1425.4,3.68852246]
[1673644593668,0.701363,1425.7,1425.4,3.68852246]
[1673644593924,0.701363,1425.7,1425.4,10.70398246]
[1673644594143,16.72636719,1425.9,1425.4,10.76998246]
[1673644594144,9.48377223,1425.9,1425.4,10.76998246]
[1673644594361,0.24486464,1425.9,1425.4,17.78555246]
[1673644594675,0.17886464,1425.9,1425.6,21.04347]
[1673644594826,0.17886464,1425.9,1425.6,24.71580272]
[1673644595043,0.17886464,1425.9,1425.6,27.18738299]
[1673644596348,0.17886464,1425.9,1425.7,3.60633272]
[1673644596522,0.17886464,1425.9,1425.7,17.63390272]
[1673644596735,0.17886464,1425.9,1425.7,24.71399272]
[1673644596947,0.17886464,1425.9,1425.7,17.69990272]
[1673644597374,0.17886464,1425.9,1425.7,24.71399272]
[1673644597577,0.17886464,1425.9,1425.7,17.69990272]
[1673644597831,0.17886464,1425.9,1425.7,28.13399902]
[1673644598002,0.17886464,1425.9,1425.8,2.5]
[1673644598208,0.17886464,1425.9,1425.8,27.14713272]
[1673644598461,0.17886464,1425.9,1425.8,27.21313272]
[1673644598672,0.17886464,1425.9,1425.8,30.97780862]
[1673644598832,0.17886464,1425.9,1425.8,28.47780862]
[1673644599305,0.17886464,1425.9,1425.8,28.48651364]
[1673644605053,1.15686464,1425.9,1425.8,0.07470502]
[1673644605347,1.15686464,1425.9,1425.7,14.09341]
[1673644605481,0.17886464,1425.9,1425.8,17.63353272]
[1673644605829,0.17886464,1425.9,1425.8,24.71313272]
[1673644606755,1.15686464,1425.9,1425.8,17.69953272]
[1673644606969,0.17886464,1425.9,1425.8,17.69953272]
[1673644607878,0.17886464,1425.9,1425.8,10.68593272]
[1673644608129,0.17886464,1425.9,1425.8,24.71313272]
[1673644608466,0.17886464,1425.9,1425.8,17.69953272]
[1673644609924,0.17886464,1425.9,1425.8,24.71313272]
[1673644610256,0.17886464,1425.9,1425.8,27.88581599]
[1673644612198,1.15686464,1425.9,1425.8,0.066]
[1673644612565,1.15686464,1425.9,1425.6,44.22704]
[1673644612714,1.15686464,1425.9,1425.7,10.62029272]
[1673644612934,1.15686464,1425.9,1425.7,10.68629272]
[1673644613293,1.15686464,1425.9,1425.7,7.07996]
[1673644613294,1.15405375,1425.9,1425.7,7.07996]
[1673644613603,1.27605913,1425.9,1425.7,7.07996]
[1673644613917,1.29640966,1425.9,1425.7,0.066]
[1673644614135,1.29640966,1425.9,1425.6,7.08018]
[1673644614292,3.79640966,1425.9,1425.6,10.68651272]
[1673644614660,22.33619966,1425.9,1425.6,3.67233272]
[1673644614866,2.23361997,1425.8,1425.6,3.60633272]
[1673644615027,21.42419966,1425.9,1425.6,3.60633272]
[1673644615707,14.41085966,1425.9,1425.6,3.60633272]
[1673644617550,21.42433966,1425.9,1425.5,0.066]
[1673644617807,21.42433966,1425.9,1425.4,0.08218974]
[1673644617808,36.18003966,1425.9,1425.4,0.08218974]
[1673644618123,14.02828,1425.7,1425.4,0.08218974]
[1673644618336,7.08009,1425.7,1425.4,0.08218974]
[1673644618492,7.08009,1425.7,1425.4,7.09773974]
[1673644618703,0.066,1425.7,1425.4,14.17930974]
[1673644618908,2.8017964,1425.7,1425.4,14.17930974]
[1673644620522,9.8159164,1425.7,1425.4,7.16373974]
[1673644620728,9.8819164,1425.7,1425.4,7.16173974]
[1673644620959,9.8819164,1425.7,1425.4,0.14818974]
[1673644621150,2.8677964,1425.7,1425.4,14.11328974]
[1673644621341,0.28677964,1425.6,1425.4,14.17928974]
[1673644621748,0.28677964,1425.6,1425.4,0.14818974]
[1673644622113,14.31615964,1425.6,1425.4,0.08218974]
[1673644622449,21.39684964,1425.6,1425.4,0.08218974]
[1673644622590,2.13968496,1425.5,1425.4,0.08218974]
[1673644622798,23.18492496,1425.5,1425.4,0.08218974]
[1673644623055,23.25092496,1425.5,1425.4,0.08218974]
[1673644623483,16.46584496,1425.5,1425.4,0.08218974]
[1673644624426,24.65792496,1425.5,1425.4,0.08218974]
[1673644624947,17.64284496,1425.5,1425.4,0.08218974]
[1673644625376,24.65792496,1425.5,1425.4,0.08218974]
[1673644625598,2.43568496,1425.5,1425.4,0.08218974]
[1673644625775,2.36968496,1425.5,1425.4,0.08218974]
[1673644626474,9.38476496,1425.5,1425.4,0.08218974]
[1673644626721,9.45076496,1425.5,1425.4,0.08218974]
[1673644627563,2.43568496,1425.5,1425.4,0.08218974]
[1673644627753,22.79793017,1425.6,1425.4,7.09775974]
[1673644627754,22.57715053,1425.6,1425.4,7.09775974]
[1673644627948,8.5564,1425.6,1425.4,7.16375974]
[1673644628578,8.5564,1425.6,1425.4,0.14818974]
[1673644628579,14.03016,1425.5,1425.4,0.14818974]
[1673644628790,7.08108,1425.5,1425.4,0.08218974]
[1673644629103,14.804268,1425.5,1425.4,0.08218974]
[1673644629358,15.034268,1425.5,1425.4,0.08218974]
[1673644631101,24.27498559,1425.5,1425.4,0.08218974]
[1673644632150,23.227348,1425.5,1425.4,0.08218974]
[1673644633418,0.774108,1425.5,1425.4,0.08218974]
[1673644633640,0.978,1425.5,1425.4,0.08218974]
[1673644635036,1.208,1425.5,1425.4,0.08218974]
[1673644636802,7.99308,1425.5,1425.4,0.08218974]
[1673644637138,1.044,1425.5,1425.4,0.08218974]
[1673644637349,0.978,1425.5,1425.4,0.07980006]
[1673644637560,3.603845,1425.5,1425.4,0.07980006]
[1673644637889,10.618925,1425.5,1425.4,0.07980006]
[1673644638121,10.684925,1425.5,1425.4,0.07980006]
[1673644638473,3.669845,1425.5,1425.4,0.07980006]
[1673644638730,0.978,1425.5,1425.4,0.07980006]
[1673644639128,7.99308,1425.5,1425.4,0.07980006]
[1673644639342,15.07416,1425.5,1425.4,0.07980006]
[1673644639950,22.31924,1425.5,1425.4,0.07980006]
[1673644640522,22.31924,1425.5,1425.4,0.01523972]
[1673644640746,25.67166105,1425.5,1425.1,2.50432658]
[1673644641052,25.67166105,1425.5,1425.1,9.52137658]
[1673644641204,25.67166105,1425.5,1425.1,7.08737658]
[1673644641411,25.67166105,1425.5,1425.1,0.07032658]
[1673644641677,25.67166105,1425.5,1425.1,0.00432658]
[1673644641861,2.56716611,1425.4,1425.1,0.01419932]
[1673644642084,22.45618,1425.3,1425.1,0.01419932]
[1673644642304,22.52218,1425.3,1425.1,0.01419932]
[1673644642632,1.178,1425.2,1425.1,0.01419932]
[1673644642945,1.178,1425.2,1425.0,10.09698581]
[1673644642946,25.883868,1425.2,1425.0,10.09698581]
[1673644643111,16.4121,1425.1,1425.0,10.09698581]
[1673644643314,16.4781,1425.1,1425.0,10.09698581]
[1673644643512,23.49515,1425.1,1425.0,10.09698581]
[1673644643950,23.49515,1425.1,1425.0,10.07715032]
[1673644644161,26.1872868,1425.1,1425.0,10.07715032]
[1673644645034,26.20763733,1425.1,1425.0,10.07715032]
[1673644646719,3.98648733,1425.1,1425.0,10.07715032]
[1673644646913,3.92048733,1425.1,1425.0,10.07715032]
[1673644647308,1.22835053,1425.1,1425.0,10.07715032]
[1673644648260,8.24540053,1425.1,1425.0,10.07715032]
[1673644648467,1.29435053,1425.1,1425.0,10.07715032]
[1673644648696,1.22835053,1425.1,1425.0,10.07715032]
[1673644649531,8.24540053,1425.1,1425.0,10.07715032]
[1673644649741,11.59021038,1425.1,1425.0,10.07715032]
[1673644649973,26.80231038,1425.1,1425.0,10.07715032]
[1673644651059,30.4086431,1425.1,1425.0,10.07715032]
[1673644651483,30.4036431,1425.1,1425.0,10.07715032]
[1673644652282,4.55280985,1425.1,1425.0,10.07715032]
[1673644652491,22.25915,1425.1,1425.0,10.07715032]
[1673644652750,22.32515,1425.1,1425.0,10.07715032]
[1673644653331,22.32515,1425.1,1425.0,10.07445906]
[1673644655865,22.34550053,1425.1,1425.0,10.07445906]
[1673644656222,25.95183325,1425.1,1425.0,10.07445906]
[1673644656385,30.86566813,1425.1,1425.0,10.07445906]
[1673644656835,33.86566813,1425.1,1425.0,10.07445906]
[1673644657061,34.91330572,1425.1,1425.0,10.07445906]
[1673644657432,33.86566813,1425.1,1425.0,10.07445906]
[1673644657640,34.91330572,1425.1,1425.0,10.07445906]
[1673644657892,37.93790968,1425.1,1425.0,10.07445906]
[1673644658109,36.88973684,1425.1,1425.0,10.07445906]
[1673644658283,37.93790625,1425.1,1425.0,10.07445906]
[1673644658499,37.93790625,1425.1,1424.9,0.07426997]
[1673644658500,36.88973684,1425.1,1424.9,0.07426997]
[1673644658756,33.55816823,1425.0,1424.9,9.97e-06]
[1673644658898,2.52035053,1424.9,1424.8,0.07837084]
[1673644659110,28.79265604,1424.9,1424.8,0.07837084]
[1673644659321,29.36152807,1424.9,1424.8,0.07837084]
[1673644659583,34.54136981,1424.9,1424.8,0.07837084]
[1673644659893,39.11103943,1424.9,1424.8,0.07837084]
[1673644660528,40.86781895,1424.9,1424.8,0.07837084]
[1673644660739,39.81960344,1424.9,1424.8,0.07837084]
[1673644660964,37.31960344,1424.9,1424.8,0.07837084]
[1673644661116,22.57497943,1424.9,1424.8,0.07837084]
[1673644661328,35.44103943,1424.9,1424.8,0.07837084]
[1673644662027,17.54829618,1424.9,1424.8,0.07837084]
[1673644662235,0.066,1424.9,1424.8,0.07837084]
[1673644662422,15.59898,1425.0,1424.8,0.07837084]
[1673644662635,22.6168,1425.0,1424.8,0.07837084]